Cogmind - Beta 11.1 @@@ ROGUE MODE // 2022.05.04 @ 14:45:29 Player: Slackware1337 Result: Destroyed by as-09416 with Assembled Heavy Rifle Performance ------------- Evolutions (0) 0 Regions Visited (2) 400 Robots Destroyed (17) 85 Value Destroyed (300) 300 Prototype IDs (0) 0 Alien Tech Used (0) 0 Bonus (0) 0 TOTAL SCORE: 785 Bonus ------- None Cogmind --------- Core Integrity 0/250 Matter 265/300 Energy 85/100 System Corruption 2% Temperature Danger (448) Movement Walking (190) Ox1 Location -10/Mines Parts ------- > --- POWER (1) -------- (None) > --- PROPULSION (2) --- Aluminum Leg > --- UTILITY (2) ------ Medium Storage Unit Signal Interpreter > --- WEAPON (2) ------- Particle Gun Particle Gun > --- INVENTORY (10) --- Ion Engine Light Ion Engine Small Storage Unit Mining Laser Peak State ------------ > --- POWER ------------ Ion Engine > --- PROPULSION ------- Flight Unit Flight Unit > --- UTILITY ---------- Medium Storage Unit Signal Interpreter > --- WEAPON ----------- Particle Gun Particle Gun > --- INVENTORY -------- Light Ion Engine Small Storage Unit Light Assault Rifle Grenade Launcher [Rating: 9] Favorites ----------- Power Ion Engine Engine Ion Engine Propulsion Aluminum Leg Leg Aluminum Leg Flight Unit Flight Unit Utility Signal Interpreter Storage Small Storage Unit Processor Signal Interpreter Weapon Assault Rifle Energy Gun EM Pulse Gun Ballistic Gun Assault Rifle Launcher Grenade Launcher Build | -11 -10 -10 ------- Run | Scr Mat Min Slots Evolved . | . . . Power . | . . . Propulsion . | . . . Utility . | . . . Weapon . | . . . Parts Attached 25 | 6 18 1 Power 4 | 1 3 . Engine 4 | 1 3 . Core . | . . . Reactor . | . . . Propulsion 9 | 2 7 . Treads . | . . . Leg 7 | 2 5 . Wheel . | . . . Hover . | . . . Flight 2 | . 2 . Utility 5 | 1 4 . Device . | . . . Storage 4 | 1 3 . Processor 1 | . 1 . Hackware . | . . . Protection . | . . . Artifact . | . . . Weapon 7 | 2 4 1 Energy Gun 4 | 1 2 1 Energy Cannon . | . . . Ballistic Gun 2 | 1 1 . Ballistic Cannon . | . . . Launcher 1 | . 1 . Special Weapon . | . . . Impact Weapon . | . . . Slashing Weapon . | . . . Piercing Weapon . | . . . Special Melee Weapon . | . . . Unidentified Prototypes . | . . . Parts Lost 8 | . 5 3 Power 2 | . 1 1 Propulsion 3 | . 2 1 Utility . | . . . Weapon 3 | . 2 1 Highest Loss Streak 4 | . 4 3 To Critical Strikes . | . . . Average Slot Usage (%) 94 | . 94 92 Engine 13 | . 13 10 Leg 23 | . 22 28 Flight 3 | . 3 . Storage 14 | . 14 14 Processor 10 | . 10 14 Energy Gun 10 | . 9 14 Ballistic Gun 16 | . 17 . Launcher 1 | . . 10 Naked Turns . | . . . Heaviest Build 21 | 14 21 21 Greatest Support 20 | 10 20 20 Greatest Overweight (x) 6 | 1 6 1 Average Overweight (x) . | . . 1 Largest Inventory Capacity 15 | 8 15 10 Average Capacity 8 | 7 9 10 Most Carried 8 | 4 8 5 Average Carried 4 | 2 5 4 Final Capacity 10 | 8 10 10 Final Carried 5 | 2 5 4 Class Distribution -------------------- 51% | Mutant 48% | Scavenger-Mutant Dominant Class ---------------- Scavenger-Mutant | -10/Materials Mutant | -10/Mines Resources | -11 -10 -10 ----------- Run | Scr Mat Min Matter Collected 518 | 266 225 27 Remotely . | . . . Salvage Created 492 | 93 384 15 Parts 39 | 2 37 . Haulers Intercepted 1 | . 1 . Recyclers Shooed . | . . . Parts Field Recycled . | . . . Retrieved Matter . | . . . Parts Self-Destructed . | . . . Prevented . | . . . Kills | -11 -10 -10 ------- Run | Scr Mat Min Combat Hostiles Destroyed 17 | . 13 4 Guns 12 | . 11 1 AOE 5 | . 2 3 Classes Destroyed 6 | 1 4 1 Hauler 1 | . 1 . Recycler 1 | 1 . . Watcher 2 | . 2 . Swarmer 8 | . 8 . Grunt 5 | . 5 . Assembled 4 | . . 4 Best Kill Streak 4 | 1 4 4 Combat Bots Only 4 | . 3 4 Max Kills in Single Turn 2 | 1 2 2 Gunslinging 1 | . 1 . Exploded 2 | . 1 2 Melee . | . . . Uniques/NPCs Destroyed . | . . . Combat | -11 -10 -10 -------- Run | Scr Mat Min Damage Taken 1286 | . 860 426 Core 258 | . 135 123 Absorbed by Shields . | . . . Core Remaining (%) 100 | 100 . . Volleys Fired 38 | 2 33 3 Largest 2 | 1 2 2 Hottest 95 | 20 95 95 Shots Fired 70 | 2 63 5 Gun 64 | 2 59 3 Cannon . | . . . Launcher 6 | . 4 2 Special . | . . . Kinetic 36 | 2 34 . Thermal 15 | . 12 3 Explosive 6 | . 4 2 Electromagnetic 13 | . 13 . Robot Hit Streak 12 | 2 12 2 Robot Miss Streak 3 | . 3 2 Penetration Max . | . . . Secondary Targets 2 | . 2 . Max Gunslinging Chain 1 | . 1 . Shots Hit Robots 45 | 2 41 2 Core Hits 37 | 2 25 10 Critical Kills . | . . . Critical Parts Destroyed . | . . . Critical Strikes . | . . . Melee Attacks . | . . . Impact . | . . . Slashing . | . . . Piercing . | . . . Sneak Attacks . | . . . Combat Hostiles . | . . . Follow-up Attacks . | . . . Damage Inflicted 923 | 24 631 268 Guns 526 | 24 489 13 Cannons . | . . . Explosions 393 | . 138 255 Melee . | . . . Ramming 4 | . 4 . Kinetic 263 | 24 239 . Thermal 135 | . 122 13 Explosive 393 | . 138 255 Electromagnetic 128 | . 128 . Impact . | . . . Slashing . | . . . Piercing . | . . . Highest Corruption 2 | . 2 2 Average Corruption 2 | . 2 2 Corruption Purged . | . . . Corruption Blocked . | . . . Effects 10 | . 9 1 Message Errors 3 | . 3 . Matter Fused 2 | . 2 . Heat Flow Errors 2 | . 1 1 Energy Discharges 2 | . 2 . Data Loss (minor) 1 | . 1 . Overload Shots . | . . . Overflow Damage 31 | . . 31 Projectiles . | . . . Explosions 31 | . . 31 Melee . | . . . Knockbacks 1 | . 1 . Impact 1 | . 1 . Kinetic . | . . . Secondary . | . . . Self-Inflicted Damage 100 | . 21 79 Shots 3 | . 1 2 Rammed . | . . . Targets Rammed 3 | . 3 . Kicked 3 | . 3 . Crushed . | . . . Highest Temperature 448 | . 270 448 Average Temperature 68 | . 61 131 Received Heat Transfer 242 | . 102 140 Effects 1 | . 1 . Interference 1 | . 1 . Siege Activations . | . . . Robots Corrupted . | . . . Combat Hostiles . | . . . Parts Fried . | . . . Impact Corruptions . | . . . Robots Melted . | . . . Combat Hostiles . | . . . Parts Melted . | . . . Heat Transferred 333 | . 296 37 Parts Sabotaged . | . . . Parts Stolen . | . . . Parts Stripped . | . . . Power Chain Reactions . | . . . Missiles Intercepted . | . . . Alert | -11 -10 -10 ------- Run | Scr Mat Min Peak Influence 166 | 5 166 77 Initial 48 | . 3 48 Average 65 | 2 71 52 Maximum Alert Level . | . . . Low Security (%) 100 | 100 100 100 Level 1 . | . . . Level 2 . | . . . Level 3 . | . . . Level 4 . | . . . Level 5 . | . . . High Security . | . . . Max Security . | . . . Squads Dispatched 3 | . 3 . Investigation 2 | . 2 . Extermination . | . . . Reinforcement 1 | . 1 . Assault . | . . . Garrison . | . . . Intercept . | . . . Searches Triggered . | . . . Construction Impeded . | . . . Haulers Reinforced . | . . . Active Scanning Responses . | . . . Cargo Convoy Interrupts . | . . . Stealth | -11 -10 -10 --------- Run | Scr Mat Min Distress Signals 2 | . 2 . Communications Jammed . | . . . Distress Signals . | . . . Times Spotted 35 | . 20 15 Peak Tracking Total 15 | . 7 15 Tactical Retreats 3 | . 2 1 Traps | -11 -10 -10 ------- Run | Scr Mat Min Traps Triggered 3 | . 3 . Indirectly . | . . . Trap Hack Attempts . | . . . Triggered . | . . . Disarmed . | . . . Reprogrammed . | . . . Reused . | . . . Traps Extracted . | . . . Installed . | . . . Triggered . | . . . Machines | -11 -10 -10 ---------- Run | Scr Mat Min Machines Disabled 4 | . 3 1 Max in Single Turn 3 | . 3 1 Machines Sabotaged . | . . . Garrisons Compromised . | . . . Overloaded Fab Kills . | . . . Hacking | -11 -10 -10 --------- Run | Scr Mat Min Machines Accessed 4 | . 4 . Terminals 3 | . 3 . Fabricators . | . . . Repair Stations . | . . . Recycling Units 1 | . 1 . Scanalyzers . | . . . Garrison Access . | . . . Total Hacks 11 | . 11 . Successful 9 | . 9 . Failed 2 | . 2 . Catastrophic . | . . . Database Lockouts . | . . . Manual 3 | . 3 . Terminals 7 | . 7 . Fabricators . | . . . Repair Stations . | . . . Recycling Units 4 | . 4 . Scanalyzers . | . . . Garrison Access . | . . . Terminal Hacks 3 | . 3 . Zone Layout 3 | . 3 . Fabricator Hacks . | . . . Repair Station Hacks . | . . . Recycling Unit Hacks 3 | . 3 . Report Inventory 1 | . 1 . Retrieve Matter 1 | . 1 . Retrieve Components 1 | . 1 . Scanalyzer . | . . . Garrison Access Hacks . | . . . Unauthorized Hacks 3 | . 3 . Terminals 3 | . 3 . Assimilate 3 | . 3 . Fabricators . | . . . Repair Stations . | . . . Recycling Units . | . . . Scanalyzers . | . . . Garrison Access . | . . . Data Cores Recovered . | . . . Used . | . . . Hacking Detections 2 | . 2 . Full Trace Events 1 | . 1 . Feedback Events . | . . . Feedback Blocked . | . . . Robot Schematics Acquired . | . . . Robots Built . | . . . Authchips . | . . . Time . | . . . Total Robot Build Rating . | . . . Part Schematics Acquired . | . . . Parts Built . | . . . Authchips . | . . . Time . | . . . Total Part Build Rating . | . . . Parts Repaired . | . . . Time . | . . . Parts Recycled . | . . . Recycled Matter . | . . . Retrieved Matter . | . . . Retrieved Components 2 | . 2 . Parts Scanalyzed . | . . . Part Schematics Acquired . | . . . Parts Damaged . | . . . Bothacking | -11 -10 -10 ------------ Run | Scr Mat Min Used RIF Installer . | . . . Robots Hacked . | . . . Non-combat . | . . . Combat . | . . . Robot Hacks Applied . | . . . Relay Couplers Released . | . . . Fabnet Peak Effective % . | . . . Robots Rewired . | . . . Allies Hacked . | . . . Hacks Repelled . | . . . Allies | -11 -10 -10 -------- Run | Scr Mat Min Total Allies . | . . . Largest Group . | . . . Highest-Rated Group . | . . . Highest-Rated Ally . | . . . Total Orders . | . . . Ally Attacks . | . . . Total Damage . | . . . Kills . | . . . Allies Corrupted . | . . . Allies Melted . | . . . Intel | -11 -10 -10 ------- Run | Scr Mat Min Robot Analysis Total . | . . . Derelict Logs Recovered . | . . . Drone Launches . | . . . Drone Recoveries . | . . . Exploration | -11 -10 -10 ------------- Run | Scr Mat Min Turns Passed 972 | 77 857 38 Spaces Moved 498 | 42 442 14 Core 10 | 6 4 . Treads . | . . . Legs 437 | 36 387 14 Wheels . | . . . Hover . | . . . Flight 51 | . 51 . Fastest Speed 50 | 50 120 190 Average Speed 138 | 145 136 190 Slowest Speed 350 | 190 350 190 Overloaded Moves . | . . . Propulsion Burnouts . | . . . Robots Hopped . | . . . Cave-ins Triggered . | . . . Exploration Rate (%) 23 | 6 57 6 Regions Visited 2 Branch Regions 1 Pre-discovered Areas . | . . . Known Exits Taken 1 | . 1 . Unknown Exits Taken 1 | 1 . . Scrap Searched . | . . . Spaces Dug . | . . . Terrain Destroyed 29 | . 18 11 Melee . | . . . Projectile . | . . . AOE 29 | . 18 11 Terrain Rammed . | . . . Walls Destroyed . | . . . Machines Disabled . | . . . Actions | -11 -10 -10 --------- Run | Scr Mat Min Total 713 | 57 636 20 Wait 114 | . 112 2 Move 496 | 41 441 14 Hop . | . . . Pick Up 27 | 8 19 . Fast Attach . | . . . Attach 13 | 6 6 1 Detach . | . . . Swap 12 | . 12 . Drop 10 | . 10 . Fire 38 | 2 33 3 Melee . | . . . Ram . | . . . Kick 3 | . 3 . Crush . | . . . Escape Stasis . | . . . Rewire . | . . . Trap . | . . . Miscellaneous . | . . . Route ------- -11/Scrapyard -10/Materials (discovered 2 exits: *Mat / *Min) -10/Mines History --------- Turn | Location | Event 16 | -11/Scrapyard | Discovered new exit (range 14) 78 | -11/Scrapyard | Entered Materials 557 | -10/Materials | Build established: Scavenger-Mutant 653 | -10/Materials | Discovered new exit (range 16) 670 | -10/Materials | Identified exit to Materials 761 | -10/Materials | Core integrity fell below 50% 782 | -10/Materials | Lost 4 parts (1p2n1w) 891 | -10/Materials | Discovered new exit (range 13) 931 | -10/Materials | Identified exit to Mines 935 | -10/Materials | Entered Mines 936 | -10/Mines | Assembled infested the area 941 | -10/Mines | Assisted by a Guerilla fighting off Assembled 972 | -10/Mines | Core integrity fell below 20% 973 | -10/Mines | Destroyed by as-09416 with Assembled Heavy Rifle Last Messages --------------- 00960_ AP-81X(h) destroyed. 00963_ as-97223 sneak attacks. 00963_ K-01 Serf system corrupted by crushing effect. 00963_ K-01 Serf knocked back. 00963_ K-01 Serf destroyed. [Achievement: Let's See Who's Tougher] 00964_ Ion Engine destroyed. 00964_ Destroyed Ion Engine. 00964_ Destroyed Asb. Hover Unit. 00964_ as-18942 destroyed. 00964_ Laser Drill disabled. 00967_ as-31271 destroyed. 00967_ Destroyed Asb. Hover Unit. 00967_ as-97223 destroyed. 00967_ Critical hit (Burn: +80). 00968_ Grenade Launcher destroyed. 00970_ as-52278 destroyed. 00971_ Aluminum Leg destroyed. 00972_ System corrupted: Heat flow error (+283). 00972_ The unstable cave ceiling collapses. Map ----- +----------------------------------------------------+ | ???????????????????????????????????????? | | ???????????????????????????????????????? | | ???????????????????????????????????????? | | ???????????????????????????????????????? | | ???????????????????????????????????????? | | ???????????????????????????????????????? | | ???????????????????????????????????????? | | ???????????????????????????????????????? | | ???????????????????????????????????????? | | ???????????????????????????????????????? | | ???????????????????????????????????????? | | ???????????????????????????????????????? | | ???????????????????????????????????????? | | ???????????????????????????????????????? | | ???????????????????????????????????????? | | ???????????????????????????????????????? | | ???????????????????????????????????????? | | ???????????????????????????????????????? | | ???????????????????????????????????????? | | ???????????????????????????????????????? | | ??????############?????????????????????? | | ??????# ##????????????????????? | | ??????# """ """ ##???????????????????? | | ??????# """ " # #???????????????????? | | ??????# """ #????????????????????? | | ??????# %@ #????????????????????? | | ??????# % aaa #???????????????????? | | ??????# a ##???????????????????? | | ??????# = a a #???????????????????? | | ??????# *% !!=a ##???????????????????? | | ??????# %*=%##????????????????????? | | ??????########%###?????????????????????? | | ?????????????#*#???????????????????????? | | ?????????????%!#???????????????????????? | | ????????????##a#???????????????????????? | | ?????????????#%#???????????????????????? | | ?????????????# ???????????????????????? | | ????????????? ???????????????????????? | | ????????????? ???????????????????????? | | ?????????????* ???????????????????????? | | ?????????????% ???????????????????????? | | ?????????????= ???????????????????????? | | ????????????? ???????????????????????? | | ?????????????# #???????????????????????? | | ?????????????? ????????????????????????? | | ???????????????????????????????????????? | | ???????????????????????????????????????? | | ???????????????????????????????????????? | | ???????????????????????????????????????? | | ???????????????????????????????????????? | +----------------------------------------------------+ Best States ------------- Heat Dissipation 25 Energy Generation 10 Energy Capacity 250 Matter Stores 300 Matter Capacity 300 Sight Range 16 Terrain Scan Density 10 Evasion (%) 55 Item Schematics ----------------- None Robot Schematics ------------------ None Fabricated ------------ Nothing Alien Tech Used ----------------- None Achievements -------------- Let's See Who's Tougher Challenges ------------ None Game ------ Seed GreatHypercooledShielding Manual? 0 Play Time 00:13:32 Cumulative 6.0 hours Start 2022.05.04 @ 14:32:44 End 2022.05.04 @ 14:45:29 Sessions 1 Manual Loads 0 Difficulty Rogue Special Mode None Game No. 14 Rogue 14 Adventurer 0 Explorer 0 Win Type - Total 0 Types 0/0/0/0/0/0/0/0/0 Lore% 12 Gallery% 12 Achievement% 9 Wizard Run 0 Options --------- ASCII 0 Keyboard 0 Movement Numpad Keybinds 0 Fullscreen 1 Font 20/SmallcapsGlow Map View 66x50 Tactical HUD 1 Map Filters NONE Filters NONE Steam 1 RUN: e6ae04c7-b327-438f-8bee-bb7c05098bdd